bitfinex/quotes_SOLUSD_20260211
["timestamp","ask_amount","ask_price","bid_price","bid_amount"]
[1770794451393,0.92656111,80.639,80.592,12.40817947]
[1770794451717,0.92656111,80.619,80.586,12.40899323]
[1770794451887,0.92656111,80.619,80.58,50.50688346]
[1770794452207,0.92656111,80.618,80.58,50.50688346]
[1770794452409,0.92656111,80.618,80.58,10.14688346]
[1770794453401,0.92656111,80.616,80.58,10.14688346]
[1770794453787,32.22,80.619,80.581,43.43455652]
[1770794453980,0.92656111,80.626,80.59,10.14688346]
[1770794454181,12.40310077,80.625,80.59,10.14688346]
[1770794454385,0.92656111,80.624,80.59,10.14688346]
[1770794455292,0.92656111,80.624,80.591,12.40833343]
[1770794455496,0.92656111,80.634,80.6,10.14688346]
[1770794455816,13.32709222,80.642,80.61,10.14688346]
[1770794456116,0.92656111,80.639,80.6,10.14688346]
[1770794456989,0.92656111,80.629,80.591,43.42916702]
[1770794457684,0.92656111,80.639,80.6,10.14453353]
[1770794457887,32.22,80.653,80.6,10.14453353]
[1770794457888,0.92656111,80.648,80.6,10.14453353]
[1770794458204,0.92656111,80.648,80.61,10.14453353]
[1770794459307,0.92656111,80.652,80.62,10.14453353]
[1770794459511,0.92656111,80.652,80.621,12.40371615]
[1770794460808,0.92656111,80.639,80.616,12.40437855]
[1770794461110,0.92656111,80.639,80.61,40.36]
[1770794461297,0.92656111,80.639,80.613,12.40492604]
[1770794461487,12.40110121,80.638,80.602,31.01622737]
[1770794461686,0.92656111,80.637,80.602,31.01622737]
[1770794462100,0.92656111,80.629,80.596,12.40743949]
[1770794462487,0.92656111,80.629,80.589,12.40860613]
[1770794462810,0.92656111,80.619,80.589,12.40860613]
[1770794463312,0.92656111,80.637,80.6,22.55139048]
[1770794463615,0.92656111,80.637,80.6,53.5687602]
[1770794463794,12.40079933,80.64,80.6,53.5687602]
[1770794464003,12.39934966,80.65,80.62,10.14453353]
[1770794464311,12.39934966,80.65,80.61,10.14453353]
[1770794464807,0.92656111,80.649,80.601,40.4]
[1770794465005,22.54388319,80.65,80.6,53.5687602]
[1770794465006,0.92656111,80.629,80.6,12.40685695]
[1770794466017,0.92656111,80.627,80.592,12.40817947]
[1770794466207,0.92656111,80.619,80.587,12.40893106]
[1770794466391,0.92656111,80.619,80.591,12.40829547]
[1770794467903,0.92656111,80.619,80.586,12.40903206]
[1770794468302,0.92656111,80.618,80.581,12.40987329]
[1770794468607,0.92656111,80.629,80.59,10.14206024]
[1770794469007,0.92656111,80.628,80.581,43.43455652]
[1770794469203,0.92656111,80.628,80.59,10.14206024]
[1770794469794,0.92656111,80.628,80.591,40.46]
[1770794470006,0.92656111,80.628,80.59,10.14206024]
[1770794470196,12.40182675,80.634,80.59,10.14206024]
[1770794470397,12.40182675,80.634,80.6,10.14206024]
[1770794470587,0.92656111,80.633,80.6,10.14206024]
[1770794471107,0.92656111,80.633,80.598,40.46]
[1770794471812,0.92656111,80.633,80.46,68.32005637]
[1770794471813,0.92656111,80.619,80.589,12.40859221]
[1770794472609,0.92656111,80.618,80.581,40.46]
[1770794472909,0.92656111,80.618,80.582,12.40971929]
[1770794473217,0.92656111,80.618,80.582,43.43401752]
[1770794473395,0.92656111,80.618,80.582,83.91401752]
[1770794479303,0.92656111,80.616,80.582,83.91401752]
[1770794480114,10.14206024,80.62,80.583,40.58]
[1770794480315,0.92656111,80.619,80.584,40.58]
[1770794480637,0.92656111,80.619,80.585,40.6]
[1770794482207,0.92656111,80.619,80.586,12.40910331]
[1770794482406,0.92656111,80.619,80.59,10.14206024]
[1770794482607,0.92656111,80.619,80.586,43.4318616]
[1770794483610,0.92656111,80.619,80.59,10.14206024]
[1770794484924,0.92656111,80.619,80.591,12.40833343]
[1770794485629,0.92656111,80.617,80.591,12.40833343]
[1770794486918,0.92656111,80.617,80.586,43.4318616]
[1770794488327,0.92656111,80.617,80.587,40.7]
[1770794488728,0.92656111,80.617,80.59,3.78835604]
[1770794489023,0.92656111,80.617,80.589,40.7]
[1770794489209,0.92656111,80.617,80.586,31.02275829]
[1770794489410,0.92656111,80.617,80.587,40.7]
[1770794490640,0.92656111,80.609,80.587,40.7]
[1770794491209,0.92656111,80.616,80.588,12.40879535]
[1770794491509,0.92656111,80.616,80.59,3.78835604]
[1770794492424,0.92656111,80.616,80.591,12.40833343]
[1770794493424,12.40368899,80.622,80.592,40.76]
[1770794493612,0.92656111,80.623,80.592,40.76]
[1770794494214,0.92656111,80.621,80.591,12.40833343]
[1770794494415,0.92656111,80.621,80.593,12.40802551]
[1770794494707,0.92656111,80.621,80.594,40.78]
[1770794495331,0.92656111,80.621,80.595,40.78]
[1770794495513,0.92656111,80.621,80.596,40.78]
[1770794496327,0.92656111,80.621,80.596,40.8]
[1770794497046,0.92656111,80.644,80.6,3.78835604]
[1770794497335,0.92656111,80.639,80.6,3.78835604]
[1770794497635,0.92656111,80.639,80.601,40.82]
[1770794498539,0.92656111,80.639,80.602,40.82]
[1770794499336,0.92656111,80.629,80.603,40.82]
[1770794499543,0.92656111,80.619,80.602,38.43767114]
[1770794499732,0.92656111,80.619,80.593,12.40794199]
[1770794503229,0.92656111,80.619,80.594,0.88908728]
[1770794506349,0.92656111,80.619,80.596,0.88908728]
[1770794507048,0.92656111,80.619,80.595,12.4077176]
[1770794508657,0.92656111,80.619,80.595,0.88908728]
[1770794510136,0.92656111,80.619,80.596,0.88908728]
[1770794512263,0.81906032,80.627,80.598,0.86778232]
[1770794512462,0.81906032,80.627,80.601,0.86778232]
[1770794515354,0.81906032,80.627,80.602,12.40664003]
[1770794516055,0.81906032,80.627,80.602,13.27442235]
[1770794517350,0.81906032,80.625,80.596,0.86778232]
[1770794522458,0.81906032,80.623,80.596,0.86778232]
[1770794523252,0.81906032,80.623,80.598,0.86778232]
[1770794526045,0.81906032,80.623,80.582,31.02420966]
[1770794526046,0.81906032,80.64,80.611,0.86778232]
[1770794526563,0.81906032,80.639,80.611,0.86778232]
[1770794527458,0.81906032,80.639,80.613,0.86778232]
[1770794530946,0.81906032,80.637,80.614,12.40479321]
[1770794531145,0.81906032,80.637,80.615,0.86778232]
[1770794531751,0.81906032,80.646,80.615,0.86778232]
[1770794533062,0.81906032,80.646,80.617,0.86778232]
[1770794533969,0.81906032,80.646,80.621,0.86778232]
[1770794534148,0.81906032,80.653,80.621,0.86778232]
[1770794535260,0.81906032,80.653,80.623,0.86778232]
[1770794535461,0.81906032,80.651,80.623,0.86778232]
[1770794535849,0.81906032,80.649,80.623,0.86778232]
[1770794537376,0.81906032,80.649,80.625,0.86778232]
[1770794540064,0.81906032,80.67,80.63,3.78785277]
[1770794540262,0.89549481,80.668,80.631,0.88518491]
[1770794541771,0.89549481,80.666,80.631,0.88518491]
[1770794541971,0.89549481,80.659,80.631,0.88518491]
[1770794543268,0.89549481,80.657,80.631,0.88518491]
[1770794545776,0.87371108,80.655,80.631,0.88518491]
[1770794546677,0.87371108,80.655,80.623,41.14]
[1770794546678,13.27079266,80.665,80.633,0.88553365]
[1770794546865,0.87371108,80.665,80.633,0.88553365]
[1770794547659,0.87371108,80.663,80.635,0.88553365]
[1770794548255,32.78,80.68,80.635,0.88553365]
[1770794548452,0.87371108,80.679,80.651,0.88553365]
[1770794549280,0.87371108,80.678,80.651,0.88553365]
[1770794549578,0.87371108,80.676,80.651,0.88553365]
[1770794550372,30.98254824,80.691,80.621,49.61464383]
[1770794550373,0.87371108,80.702,80.671,0.88553365]
[1770794551378,0.87371108,80.7,80.671,0.88553365]
[1770794552779,0.87371108,80.698,80.671,0.88553365]
[1770794556075,0.87371108,80.696,80.671,0.88553365]
[1770794556966,0.87371108,80.679,80.638,0.88553365]
[1770794557170,0.87371108,80.659,80.625,0.88553365]
[1770794557383,0.87371108,80.649,80.628,13.28804168]
[1770794557765,0.87371108,80.649,80.628,0.88553365]
[1770794562991,30.99176425,80.667,80.626,12.40281117]
[1770794562992,0.87371108,80.639,80.626,12.40281117]
[1770794563994,0.87371108,80.639,80.622,12.40354585]
[1770794564190,0.87371108,80.639,80.623,0.88553365]
[1770794565375,0.87371108,80.639,80.624,12.40325461]
[1770794566696,0.87371108,80.649,80.625,0.88553365]
[1770794566995,0.87371108,80.629,80.593,0.88553365]
[1770794568397,0.87371108,80.628,80.595,0.88553365]
[1770794568595,0.87371108,80.609,80.589,41.24]
[1770794568798,0.87371108,80.609,80.57,3.78785277]
[1770794568799,0.87371108,80.599,80.582,12.40962845]
[1770794568976,0.87371108,80.609,80.583,0.88553365]
[1770794569794,0.87371108,80.618,80.595,0.88553365]
[1770794570303,0.8863767,80.624,80.597,0.86172298]
[1770794570484,0.8863767,80.624,80.596,12.40756365]
[1770794570485,32.82,80.635,80.601,0.86172298]
[1770794571091,0.8863767,80.644,80.611,0.86172298]
[1770794571291,32.82,80.655,80.621,0.86172298]
[1770794571292,0.8863767,80.652,80.621,0.86172298]
[1770794573207,0.8863767,80.652,80.623,0.86172298]
[1770794575013,0.8863767,80.652,80.625,0.86172298]
[1770794576909,0.8863767,80.659,80.631,0.86172298]
[1770794577212,0.8863767,80.659,80.633,0.86172298]
[1770794577414,32.84,80.662,80.633,0.86172298]
[1770794578317,33.7263767,80.662,80.633,0.86172298]
[1770794578613,0.8863767,80.661,80.633,0.86172298]
[1770794578802,0.8863767,80.659,80.633,0.86172298]
[1770794580916,0.8863767,80.659,80.635,0.86172298]
[1770794582512,0.8863767,80.659,80.637,0.86172298]
[1770794582818,31.3483355,80.662,80.641,0.86172298]
[1770794583016,0.8863767,80.672,80.641,0.86172298]
[1770794583816,13.28239443,80.672,80.641,0.86172298]
[1770794584015,0.8863767,80.659,80.633,0.86172298]
[1770794584522,0.8863767,80.659,80.636,12.4014088]
[1770794585530,0.8863767,80.657,80.626,0.86172298]
[1770794585825,0.8863767,80.649,80.615,12.40453824]
[1770794586004,0.8863767,80.649,80.62,0.86172298]
[1770794586206,0.8863767,80.649,80.627,0.86172298]
[1770794586415,0.8863767,80.655,80.631,0.86172298]
[1770794586618,0.8863767,80.655,80.634,12.40171639]
[1770794586809,0.8863767,80.655,80.635,0.86172298]
[1770794587204,0.8863767,80.664,80.635,0.86172298]
[1770794587403,0.8863767,80.664,80.637,0.86172298]
[1770794587920,13.28348073,80.664,80.637,0.86172298]
[1770794588125,0.8863767,80.663,80.637,0.86172298]
[1770794589921,0.8863767,80.663,80.639,0.86172298]
[1770794591513,0.8863767,80.663,80.64,12.40079365]
[1770794593226,0.8863767,80.663,80.639,0.86172298]
[1770794593423,32.96,80.665,80.629,0.86172298]
[1770794593424,0.8863767,80.659,80.629,0.86172298]
[1770794593629,0.8863767,80.658,80.629,0.86172298]
[1770794594528,0.8863767,80.664,80.631,0.86172298]
[1770794595729,0.8863767,80.664,80.63,3.78437886]
[1770794595730,0.8863767,80.664,80.633,0.86172298]
[1770794595924,0.8863767,80.659,80.633,0.86172298]
[1770794596143,0.8863767,80.659,80.626,0.86172298]
[1770794596319,0.8863767,80.649,80.626,0.86172298]
[1770794596720,0.8863767,80.639,80.604,12.4063219]
[1770794596917,0.8863767,80.629,80.595,0.86172298]
[1770794597319,0.8863767,80.627,80.595,0.86172298]
[1770794597525,0.8863767,80.625,80.599,0.86172298]
[1770794599327,0.8863767,80.625,80.587,31.02235953]
[1770794599328,0.8863767,80.619,80.592,0.86172298]
[1770794599711,0.8863767,80.619,80.594,0.86172298]
[1770794600110,0.8863767,80.619,80.588,0.86172298]
[1770794600312,0.87213601,80.615,80.588,0.86172298]
[1770794600529,0.87213601,80.621,80.593,0.84767036]
[1770794601234,0.87213601,80.619,80.587,12.40891168]
[1770794601459,0.87213601,80.609,80.582,0.84767036]
[1770794601734,0.87213601,80.609,80.573,41.22]
[1770794601939,0.87213601,80.599,80.573,53.63109969]
[1770794602134,0.87213601,80.599,80.573,12.41109969]
[1770794602518,0.87213601,80.599,80.569,0.84767036]
[1770794603424,0.87213601,80.589,80.56,0.1]
[1770794603638,0.87213601,80.579,80.56,0.1]
[1770794604149,0.87213601,80.579,80.542,0.84767036]
[1770794604150,0.87213601,80.569,80.544,12.41547023]
[1770794604325,0.87213601,80.569,80.531,31.04392467]
[1770794604326,0.87213601,80.569,80.548,13.26256214]
[1770794604525,12.41033532,80.578,80.553,0.87894155]
[1770794604526,0.87213601,80.577,80.553,0.87894155]
[1770794604842,0.87213601,80.577,80.557,0.87894155]
[1770794605138,0.88057409,80.569,80.55,0.1]
[1770794605335,0.88057409,80.559,80.528,0.87894155]
[1770794605714,0.88057409,80.559,80.53,0.87894155]
[1770794605919,0.88057409,80.549,80.52,0.1]
[1770794606241,0.88057409,80.54,80.52,0.1]
[1770794607237,36.86437886,80.55,80.52,0.97894155]
[1770794607238,0.88057409,80.549,80.52,0.97894155]
[1770794607734,0.88057409,80.539,80.52,0.1]
[1770794607932,0.88057409,80.537,80.52,0.1]
[1770794608243,0.88057409,80.529,80.51,0.1]
[1770794608817,0.88057409,80.519,80.486,0.87894155]
[1770794609024,0.88057409,80.509,80.486,0.87894155]
[1770794609528,0.88057409,80.499,80.468,13.30611191]
[1770794609738,0.88057409,80.497,80.468,0.87894155]
[1770794610041,33.1,80.498,80.462,12.42816443]
[1770794610042,0.88057409,80.489,80.462,12.42816443]
[1770794610335,0.88057409,80.489,80.463,0.87894155]
[1770794610639,33.1,80.504,80.471,0.87894155]
[1770794610840,0.88057409,80.499,80.471,0.87894155]
[1770794611429,0.88057409,80.489,80.452,0.87894155]
[1770794611826,0.88057409,80.479,80.436,0.87894155]
[1770794612026,11.05865661,80.45,80.425,0.87894155]
[1770794612245,0.88057409,80.448,80.425,0.87894155]
[1770794612719,0.88057409,80.448,80.417,0.87894155]
[1770794612924,0.88057409,80.439,80.411,12.43596452]
[1770794613147,10.17808252,80.42,80.385,0.87894155]
[1770794613439,10.17808252,80.41,80.377,0.87894155]
[1770794613645,29.38,80.409,80.377,0.87894155]
[1770794613828,29.38,80.409,80.379,12.44105642]
[1770794614244,10.17808252,80.4,80.377,0.87894155]
[1770794614446,0.38057409,80.396,80.339,0.87894155]
[1770794614620,0.38057409,80.396,80.312,49.80529317]
[1770794614621,10.17808252,80.4,80.361,0.87894155]
[1770794614944,33.1,80.409,80.388,0.87894155]
[1770794615244,33.1,80.409,80.371,0.87894155]
[1770794615454,10.17808252,80.41,80.371,0.87894155]
[1770794615629,10.17808251,80.416,80.381,0.87894155]
[1770794615949,10.17808252,80.41,80.381,0.87894155]
[1770794617548,10.17808252,80.41,80.35,5.13032502]
[1770794617549,12.43385531,80.426,80.391,0.87894155]
[1770794617729,10.17808252,80.42,80.391,0.87894155]
[1770794617926,0.88057409,80.399,80.305,99.61964106]
[1770794618247,0.88057409,80.415,80.38,10.17808252]
[1770794618429,0.88057409,80.415,80.381,12.44075092]
[1770794618837,0.88057409,80.433,80.4,10.17808252]
[1770794619148,10.17808251,80.424,80.39,10.17808252]
[1770794619446,10.17808252,80.41,80.374,12.44170802]
[1770794619640,0.88057409,80.409,80.379,12.4409197]
[1770794620044,0.88057409,80.409,80.379,13.31986125]
[1770794620240,0.88057409,80.409,80.38,0.87894155]
[1770794620741,33.18,80.423,80.381,0.87894155]
[1770794621646,10.17808252,80.42,80.381,0.87894155]
[1770794621951,33.18,80.423,80.381,0.87894155]
[1770794622329,10.17808252,80.42,80.383,0.87894155]
[1770794622745,10.17808251,80.419,80.383,0.87894155]
[1770794623230,0.88057409,80.418,80.383,0.87894155]
[1770794623731,10.17808251,80.419,80.391,0.87894155]
[1770794623953,0.90986291,80.444,80.4,10.17808252]
[1770794624253,0.90986291,80.444,80.401,12.43765624]
[1770794624554,10.17808252,80.44,80.401,12.43765624]
[1770794625054,10.17808252,80.45,80.41,10.17808252]
[1770794625248,0.90986291,80.449,80.41,10.17808252]
[1770794625546,0.90986291,80.449,80.401,43.53179686]
[1770794625740,0.90986291,80.429,80.395,41.22]
[1770794625941,0.90986291,80.429,80.398,12.43804374]
[1770794626350,33.2,80.451,80.395,41.22]
[1770794626351,0.90986291,80.438,80.4,10.17808252]
[1770794627351,10.17808252,80.45,80.396,43.5345042]
[1770794627352,0.90986291,80.449,80.41,10.17808252]
[1770794627654,11.08794543,80.44,80.4,10.17808252]
[1770794627851,0.90986291,80.439,80.4,10.17808252]
[1770794628353,0.90986291,80.439,80.41,10.17808252]
[1770794628663,0.90986291,80.449,80.411,12.43610948]
[1770794630137,0.90986291,80.449,80.412,0.02289844]
[1770794630437,49.69173111,80.497,80.411,43.52638319]
[1770794630438,0.90986291,80.469,80.431,0.02577642]
[1770794630746,0.90986291,80.469,80.431,12.45879354]
[1770794631452,0.90986291,80.469,80.408,5.36086188]
[1770794631453,0.90986291,80.459,80.424,12.43407764]
[1770794631639,0.90986291,80.459,80.422,0.02577642]
[1770794631840,0.90986291,80.459,80.431,12.43301712]
[1770794632652,0.90986291,80.459,80.432,0.03142414]
[1770794632852,13.3371632,80.468,80.432,0.03142414]
[1770794633058,0.90986291,80.467,80.432,0.03142414]
[1770794633259,0.90986291,80.467,80.441,0.03142414]
[1770794633450,0.90986291,80.467,80.433,0.03420376]
[1770794634156,10.17808252,80.46,80.431,12.43301712]
[1770794634353,0.90986291,80.459,80.424,53.7282896]
[1770794635260,0.90986291,80.459,80.428,12.43334415]
[1770794635859,12.42884486,80.458,80.428,12.43334415]
[1770794636058,0.90986291,80.457,80.428,12.43334415]
[1770794637061,0.90986291,80.457,80.424,0.03420376]
[1770794637062,0.90986291,80.457,80.43,10.17808252]
[1770794637249,0.90986291,80.469,80.431,0.04236473]
[1770794637577,0.90986291,80.479,80.441,0.04501943]
[1770794637872,0.90986291,80.479,80.45,10.17808252]
[1770794638049,0.90986291,80.488,80.451,0.04501943]
[1770794638249,0.90986291,80.487,80.451,0.04501943]
[1770794638959,13.33330345,80.493,80.461,0.04763887]
[1770794639140,0.90986291,80.489,80.459,12.42864844]
[1770794639344,0.90986291,80.489,80.451,12.42977551]
[1770794639544,0.90986291,80.489,80.45,51.45808252]
[1770794639545,0.90986291,80.489,80.452,0.05023382]
[1770794640364,12.42253481,80.499,80.471,0.05279592]
[1770794640559,12.42253481,80.499,80.461,12.42838145]
[1770794640560,0.90986291,80.498,80.461,12.48117737]
[1770794640763,0.90986291,80.498,80.461,53.76117737]
[1770794641268,0.90986291,80.498,80.462,0.05279592]
[1770794641566,49.6637281,80.542,80.461,84.77933507]
[1770794641567,31.24074597,80.54,80.481,0.05531642]
[1770794641746,31.24074597,80.54,80.48,10.17808252]
[1770794641747,0.2,80.54,80.511,0.05531642]
[1770794641945,0.2,80.54,80.52,10.17808252]
[1770794642475,0.14358861,80.54,80.52,10.17808252]
[1770794642772,0.93806861,80.529,80.5,10.17808252]
[1770794643067,0.93806861,80.519,80.495,29.16]
[1770794643453,0.93806861,80.517,80.486,12.42445805]
[1770794644149,0.93806861,80.517,80.496,12.42297753]
[1770794644658,0.14358861,80.54,80.496,12.42297753]
[1770794644659,0.14358861,80.54,80.51,10.17808252]
[1770794644970,0.14358861,80.54,80.52,10.17808252]
[1770794645371,0.93806861,80.558,80.521,12.41912047]
[1770794645562,0.93806861,80.556,80.521,12.41912047]
[1770794646458,33.22,80.572,80.54,10.16516355]
[1770794646773,10.16516355,80.57,80.535,41.32]
[1770794646978,0.93806861,80.569,80.535,41.32]
[1770794647170,10.16516355,80.56,80.535,41.32]
[1770794647377,0.93806861,80.558,80.535,41.32]
[1770794648181,0.93806861,80.558,80.526,12.4183142]
[1770794648356,0.93806861,80.558,80.531,12.41747796]
[1770794648563,0.93806861,80.558,80.526,12.41830915]
[1770794648881,0.93806861,80.558,80.53,10.16257709]
[1770794649378,0.93806861,80.558,80.53,22.58018818]
[1770794649856,0.93806861,80.569,80.54,10.16257709]
[1770794650061,0.93806861,80.579,80.54,10.16257709]
[1770794650379,13.34847077,80.578,80.55,10.16257709]
[1770794650969,0.93806861,80.578,80.55,10.16257709]
[1770794651378,0.93806861,80.576,80.55,10.16257709]
[1770794651677,0.93806861,80.576,80.546,12.41522925]
[1770794652682,0.93806861,80.576,80.542,0.02070953]
[1770794652874,0.93806861,80.576,80.545,12.41537264]
[1770794653271,0.93806861,80.576,80.55,10.16257709]
[1770794654379,0.93806861,80.576,80.551,12.41449516]
[1770794654774,0.93806861,80.597,80.551,12.41449516]
[1770794655283,0.93806861,80.597,80.552,0.02970239]
[1770794655671,0.93806861,80.589,80.552,0.02970239]
[1770794655872,0.93806861,80.579,80.546,12.41515308]
[1770794656070,0.93806861,80.579,80.547,41.32]
[1770794656384,0.93806861,80.579,80.55,12.41456426]
[1770794656589,0.93806861,80.579,80.54,10.16257709]
[1770794657077,0.93806861,80.579,80.55,10.16257709]
[1770794657275,0.93806861,80.579,80.55,22.57715106]
[1770794657979,0.93806861,80.582,80.56,10.16257709]
[1770794658184,0.93806861,80.582,80.551,0.03617309]
[1770794658681,0.93806861,80.582,80.55,22.57715106]
[1770794659182,31.01852426,80.597,80.55,12.41457397]
[1770794659183,0.93806861,80.579,80.55,12.41457397]
[1770794659378,0.93806861,80.579,80.55,22.57715106]
[1770794660379,0.95919228,80.59,80.56,10.20703718]
[1770794660558,12.40741364,80.597,80.57,10.16257709]
[1770794660765,0.95919228,80.597,80.57,10.16257709]
[1770794661082,12.4067735,80.602,80.571,0.04446009]
[1770794661282,0.95919228,80.601,80.571,0.04446009]
[1770794661658,12.40371615,80.621,80.59,10.16257709]
[1770794661881,0.95919228,80.62,80.59,10.16257709]
[1770794662287,0.95919228,80.618,80.59,10.16257709]
[1770794662466,0.95919228,80.618,80.586,12.40909987]
[1770794663279,0.95919228,80.618,80.581,0.04646559]
[1770794664289,0.95919228,80.618,80.588,12.40871366]
[1770794664464,12.40433159,80.617,80.59,10.16257709]
[1770794664880,13.34055406,80.629,80.6,10.16257709]
[1770794665081,0.93806861,80.628,80.591,0.05425478]
[1770794665772,0.93806861,80.628,80.59,51.48257709]
[1770794667188,0.93806861,80.619,80.585,12.40918235]
[1770794667369,0.93806861,80.619,80.581,0.05985814]
[1770794667572,0.93806861,80.619,80.591,12.40833343]
[1770794669290,5.13032502,80.641,80.591,12.40833343]
[1770794669291,0.93806861,80.636,80.61,10.16257709]
[1770794669605,0.93806861,80.636,80.591,43.42916702]
[1770794669606,0.93806861,80.648,80.62,10.16257709]
[1770794670480,12.39840888,80.656,80.63,10.22784759]
[1770794671080,12.39840888,80.656,80.63,10.16257709]
[1770794671278,12.39747817,80.662,80.63,10.16257709]
[1770794671475,0.93806861,80.665,80.64,10.16257709]
[1770794671684,0.93806861,80.665,80.63,12.40231428]
[1770794671685,0.93806861,80.664,80.63,22.56489137]
[1770794671889,0.93806861,80.659,80.626,41.3]
[1770794672063,0.93806861,80.659,80.625,12.40298464]
[1770794673389,0.93806861,80.657,80.625,12.40298464]
[1770794673888,0.93806861,80.657,80.63,10.16257709]
[1770794674070,0.93806861,80.665,80.64,10.16257709]
[1770794674462,0.93806861,80.659,80.625,12.40298464]
[1770794675081,0.93806861,80.659,80.63,10.16257709]
[1770794675675,13.3359568,80.659,80.63,10.16257709]
[1770794675878,12.39708353,80.665,80.632,0.07387821]
[1770794676074,0.93806861,80.667,80.64,10.16257709]
[1770794676285,12.59628495,80.67,80.641,0.07387821]
[1770794676624,0.2,80.67,80.65,10.16257709]
[1770794676773,0.2,80.67,80.636,41.3]
[1770794676774,0.2,80.67,80.66,10.16257709]
[1770794677091,0.12376454,80.67,80.66,10.16257709]
[1770794677293,12.39143182,80.701,80.66,10.16257709]
[1770794677486,12.39143182,80.701,80.67,10.16257709]
[1770794677890,12.39143182,80.701,80.671,12.39602831]
[1770794678491,0.97618634,80.702,80.68,10.16257709]
[1770794679312,0.2,80.71,80.69,10.16257709]
[1770794680010,0.2,80.72,80.691,12.39295584]
[1770794680186,0.2,80.72,80.691,53.71295584]
[1770794680818,12.58855081,80.72,80.691,53.71295584]
[1770794681026,0.97618634,80.719,80.68,22.55712809]
[1770794681191,0.97618634,80.709,80.674,12.39544652]
[1770794681514,0.97618634,80.709,80.675,41.34]
[1770794682311,0.97618634,80.707,80.675,41.34]
[1770794682509,0.97618634,80.707,80.68,10.16257709]
[1770794683595,0.97618634,80.719,80.69,10.16257709]
[1770794683796,0.97618634,80.714,80.68,10.16257709]
[1770794684307,0.97618634,80.714,80.69,10.16257709]
[1770794684812,0.97618634,80.714,80.69,22.55567188]
[1770794685110,0.97618634,80.714,80.685,12.39375557]
[1770794686111,0.97618634,80.709,80.622,49.6137799]
[1770794686315,0.97618634,80.689,80.667,12.39656354]
[1770794686613,13.36817797,80.698,80.661,53.77756511]
[1770794686817,0.97618634,80.697,80.661,53.77756511]
[1770794687616,0.97618634,80.697,80.67,10.16257709]
[1770794688018,0.97618634,80.696,80.67,10.16257709]
[1770794688715,0.97618634,80.696,80.671,12.39602831]
[1770794689025,0.97618634,80.694,80.661,41.38]
[1770794689320,0.97618634,80.689,80.664,12.3970393]
[1770794690119,0.97618634,80.689,80.67,10.16257709]
[1770794690616,0.97618634,80.699,80.671,12.41874539]
[1770794691630,0.97618634,80.707,80.68,10.16257709]
[1770794692303,0.97618634,80.707,80.681,41.42]
[1770794692794,0.97618634,80.707,80.682,12.39433826]
[1770794693202,0.97618634,80.716,80.69,10.16257709]
[1770794693705,0.97618634,80.716,80.682,12.39433826]
[1770794694023,0.97618634,80.709,80.682,12.39433826]
[1770794694716,0.97618634,80.709,80.681,41.42]
[1770794695604,0.97618634,80.707,80.681,41.42]
[1770794696008,0.97618634,80.699,80.66,10.16257709]
[1770794696334,0.97618634,80.699,80.664,12.39700582]
[1770794697016,0.97618634,80.699,80.66,10.16257709]
[1770794697223,0.97618634,80.699,80.667,12.3964999]
[1770794698312,0.97618634,80.697,80.67,10.16257709]
[1770794699723,0.97618634,80.697,80.671,0.03490472]
[1770794699920,0.97618634,80.707,80.68,10.16257709]
[1770794700114,0.2,80.72,80.69,10.16257709]
[1770794700314,0.97618634,80.719,80.69,10.16257709]
[1770794700504,0.97618634,80.716,80.69,10.16257709]
[1770794700905,0.97618634,80.716,80.682,12.39424359]
[1770794701520,0.97618634,80.699,80.667,12.39654137]
[1770794702206,0.97618634,80.699,80.67,10.16257709]
[1770794702411,0.97618634,80.699,80.671,12.39602831]
[1770794702726,0.97618634,80.708,80.68,10.16257709]
[1770794703713,76.78569518,80.709,80.648,30.99854242]
[1770794703900,0.97618634,80.699,80.66,10.16257709]
[1770794705019,0.97618634,80.679,80.644,41.5]
[1770794705205,0.97618634,80.679,80.644,41.52]
[1770794706111,0.97618634,80.677,80.645,12.4000248]
[1770794706308,0.97618634,80.669,80.645,12.4000248]
[1770794706530,0.97618634,80.669,80.644,41.52]
[1770794706919,0.97618634,80.669,80.636,12.40139568]
[1770794707927,0.97618634,80.669,80.64,10.16257709]
[1770794708117,0.97618634,80.667,80.631,12.40217782]
[1770794709329,0.97618634,80.667,80.632,0.0470212]
[1770794709716,0.97618634,80.675,80.641,0.0470212]
[1770794710932,0.97618634,80.675,80.641,12.44766107]
[1770794711122,0.97618634,80.683,80.651,0.04816152]
[1770794711326,0.97618634,80.683,80.653,0.04816152]
[1770794712231,0.97618634,80.683,80.653,12.44695635]
[1770794713527,0.97618634,80.683,80.655,12.39848738]
[1770794714932,0.97618634,80.683,80.65,10.13609367]
[1770794714933,0.97618634,80.669,80.603,0.05256997]
[1770794715140,0.97618634,80.649,80.61,10.13609367]
[1770794715314,0.97618634,80.639,80.605,0.05364435]
[1770794715520,0.97618634,80.639,80.605,12.40617827]
[1770794715720,0.97618634,80.637,80.605,12.40617827]
[1770794716133,0.97618634,80.629,80.602,41.6]